bitfinex/quotes_ETHUSD_20230103
["timestamp","ask_amount","ask_price","bid_price","bid_amount"]
[1672787153153,4.99579588,1214.0,1213.8,14.56463466]
[1672787153341,4.99579588,1214.0,1213.8,24.45083466]
[1672787153551,4.99579588,1214.0,1213.8,19.2518337]
[1672787153765,4.99579588,1214.0,1213.8,29.1391337]
[1672787154012,6.49243355,1214.0,1213.8,19.2528337]
[1672787155590,6.49243355,1214.0,1213.9,3.0]
[1672787155827,16.37710355,1214.0,1213.9,3.0]
[1672787157595,6.49243355,1214.0,1213.9,3.0]
[1672787157803,4.99579588,1214.0,1213.9,3.0]
[1672787158847,4.99579588,1214.0,1213.9,12.88549]
[1672787159126,4.99579588,1214.0,1213.9,12.97456352]
[1672787159590,4.99579588,1214.0,1213.9,3.08907352]
[1672787159803,4.99579588,1214.0,1213.9,3.0]
[1672787161289,4.99579588,1214.0,1213.9,12.88549]
[1672787161435,4.99579588,1214.0,1213.9,12.97456352]
[1672787161857,4.99579588,1214.0,1213.9,17.9680322]
[1672787162063,0.0023272,1214.0,1213.9,17.9680322]
[1672787162278,0.0023272,1214.0,1213.9,27.8500157]
[1672787162738,4.99489009,1214.0,1213.9,27.8500157]
[1672787162982,0.0023272,1214.0,1213.9,27.8500157]
[1672787163188,0.0023272,1214.0,1213.9,17.9645257]
[1672787163349,0.0023272,1214.0,1213.9,27.8500157]
[1672787163555,0.0023272,1214.0,1213.9,17.9645257]
[1672787163767,0.0023272,1214.0,1213.9,22.11338684]
[1672787164022,0.0023272,1214.0,1213.9,33.62587684]
[1672787164237,0.0023272,1214.0,1213.9,23.74038684]
[1672787167722,0.0023272,1214.0,1213.9,33.62587684]
[1672787168974,0.0023272,1214.0,1213.9,23.74038684]
[1672787171038,9.8869972,1214.0,1213.9,4.71256702]
[1672787171247,21.750843,1214.0,1213.9,4.6234935]
[1672787171498,1.981503,1214.0,1213.9,2.9964935]
[1672787171653,1.981503,1214.0,1213.9,7.98996218]
[1672787171870,1.981503,1214.0,1213.9,8.0790357]
[1672787172337,1.981503,1214.0,1213.9,17.9645257]
[1672787172556,0.0043272,1214.0,1213.9,8.07896218]
[1672787172704,0.0023272,1214.0,1213.9,8.0790357]
[1672787172915,0.0023272,1214.0,1213.9,17.9645257]
[1672787173128,0.0023272,1214.0,1213.9,8.0790357]
[1672787173547,0.0023272,1214.0,1213.9,12.5790357]
[1672787174761,0.0023272,1214.0,1213.9,22.4645257]
[1672787175367,0.0023272,1214.0,1213.9,12.5790357]
[1672787175562,0.0023272,1214.0,1213.9,22.4645257]
[1672787176274,0.0023272,1214.0,1213.9,12.5790357]
[1672787176934,19.7716672,1214.0,1213.9,8.0790357]
[1672787177151,9.8869972,1214.0,1213.9,8.0790357]
[1672787177344,0.0023272,1214.0,1213.9,8.0790357]
[1672787178795,9.8869972,1214.0,1213.9,8.0790357]
[1672787179255,0.0023272,1214.0,1213.9,8.0790357]
[1672787179674,0.0023272,1214.0,1213.9,17.9645257]
[1672787179847,0.0023272,1214.0,1213.9,27.8500157]
[1672787180327,0.0023272,1214.0,1213.9,17.9645257]
[1672787181214,0.0023272,1214.0,1213.9,8.0790357]
[1672787181752,0.0023272,1214.0,1213.9,17.9645257]
[1672787182265,0.0023272,1214.0,1213.9,8.0790357]
[1672787185140,0.0023272,1214.0,1213.9,8.07672277]
[1672787192708,0.0023272,1214.0,1213.9,17.96221277]
[1672787192883,0.0023272,1214.0,1213.9,37.73319277]
[1672787193885,0.0023272,1214.0,1213.9,31.99656391]
[1672787195883,0.0023272,1214.0,1213.9,47.0588573]
[1672787196096,0.0023272,1214.0,1213.9,37.1733673]
[1672787196987,0.0023272,1214.0,1213.9,27.2878773]
[1672787197199,0.0023272,1214.0,1213.9,22.11107391]
[1672787197653,0.0023272,1214.0,1213.9,24.14407391]
[1672787198038,0.0023272,1214.0,1213.9,34.02956391]
[1672787198451,0.0023272,1214.0,1213.9,42.63924563]
[1672787198661,0.0023272,1214.0,1213.9,77.63843766]
[1672787198923,0.0023272,1214.0,1213.9,78.90285725]
[1672787199094,0.0023272,1214.0,1213.9,90.83134725]
[1672787200443,0.0023272,1214.0,1213.9,92.87643403]
[1672787200869,0.0023272,1214.0,1213.9,90.83134725]
[1672787201329,0.0023272,1214.0,1213.9,37.28297391]
[1672787201663,0.0023272,1214.0,1213.9,70.08995391]
[1672787201880,0.0023272,1214.0,1213.9,70.58512563]
[1672787203816,0.0023272,1214.0,1213.9,70.57712563]
[1672787206152,0.0023272,1214.0,1213.9,81.31101563]
[1672787206508,0.0023272,1214.0,1213.9,89.61493923]
[1672787206748,0.0023272,1214.0,1213.9,91.03853923]
[1672787215687,0.0023272,1214.0,1213.9,94.1455501]
[1672787215876,0.0023272,1214.0,1213.9,94.14555574]
[1672787216218,0.0023272,1214.0,1213.9,92.10057259]
[1672787216787,0.0023272,1214.0,1213.9,94.14555683]
[1672787217753,0.0023272,1214.0,1213.9,92.10057259]
[1672787217962,0.0023272,1214.0,1213.9,94.14554079]
[1672787219096,0.0023272,1214.0,1213.9,97.21298647]
[1672787219570,0.0023272,1214.0,1213.9,96.15095311]
[1672787219898,0.0023272,1214.0,1213.9,91.03853923]
[1672787220104,0.01810442,1214.1,1214.0,4.5]
[1672787220252,0.01810442,1214.1,1214.0,50.37933982]
[1672787220466,0.01810442,1214.1,1214.0,50.46841334]
[1672787221256,0.01810442,1214.1,1214.0,48.42741334]
[1672787222224,0.03234936,1214.3,1214.1,4.5]
[1672787222365,0.03234936,1214.3,1214.2,64.10047982]
[1672787222572,0.03234936,1214.3,1214.2,64.68472506]
[1672787223310,0.03234936,1214.3,1214.2,73.25502506]
[1672787223519,0.03234936,1214.3,1214.2,75.93079992]
[1672787225162,0.08998699,1214.5,1214.2,105.79187582]
[1672787225364,0.08998699,1214.5,1214.4,34.89986114]
[1672787225519,0.08998699,1214.5,1214.4,84.55222022]
[1672787225717,0.08998699,1214.5,1214.4,85.27732263]
[1672787225934,0.08998699,1214.5,1214.4,90.63123257]
[1672787226414,0.02815556,1214.6,1214.4,103.65750138]
[1672787226728,0.02815556,1214.6,1214.5,49.15252982]
[1672787226942,0.02815556,1214.6,1214.5,129.82833182]
[1672787227150,0.5,1215.0,1214.8,4.954]
[1672787227391,0.66034,1215.1,1214.9,39.01886114]
[1672787227509,0.66034,1215.1,1215.0,48.58748114]
[1672787227722,0.66034,1215.1,1215.0,52.40172638]
[1672787228155,0.66034,1215.1,1215.0,54.58355661]
[1672787228377,6.32095138,1215.5,1215.3,8.686]
[1672787228378,0.8132642,1215.5,1215.3,8.686]
[1672787228598,0.7472642,1215.5,1215.4,78.49607614]
[1672787228770,0.06,1216.0,1215.8,4.14886114]
[1672787228987,0.06,1216.0,1215.9,7.43343092]
[1672787228988,4.92088034,1216.0,1215.9,7.43343092]
[1672787229197,5.53818034,1216.0,1215.9,4.23793466]
[1672787229460,4.5,1216.0,1215.9,43.6173732]
[1672787229675,4.5,1216.0,1215.9,33.83721672]
[1672787229987,0.7472642,1216.7,1216.5,29.59308]
[1672787230152,0.33304121,1216.7,1216.6,25.37886114]
[1672787230369,20.63145023,1216.8,1216.6,19.71879524]
[1672787230370,10.86186125,1216.8,1216.6,19.71879524]
[1672787230722,4.85576802,1216.7,1216.6,0.08907352]
[1672787230928,4.85576802,1216.7,1216.4,3.98868023]
[1672787230929,14.21850802,1216.7,1216.4,3.98868023]
[1672787231146,5.4535373,1216.6,1216.3,11.58907352]
[1672787231456,2.039,1216.4,1216.3,4.58907352]
[1672787231671,29.2529773,1216.4,1216.2,0.07707352]
[1672787231995,24.4233264,1216.3,1216.2,7.0]
[1672787232136,0.6171,1216.3,1216.2,7.09507352]
[1672787232365,3.11494525,1216.3,1216.2,7.09507352]
[1672787232597,3.11494525,1216.3,1215.8,7.0]
[1672787232598,24.89117165,1216.3,1215.8,7.0]
[1672787232802,2.032,1215.9,1215.8,7.002]
[1672787233042,2.032,1215.9,1215.8,7.098]
[1672787233043,37.0935273,1215.9,1215.8,7.098]
[1672787233372,37.0935273,1215.9,1215.8,0.098]
[1672787233373,37.0977937,1215.9,1215.8,0.098]
[1672787233556,42.00444543,1215.9,1215.6,7.098]
[1672787233720,7.4959373,1215.8,1215.6,7.098]
[1672787233936,36.4890873,1215.7,1215.6,7.098]
[1672787234145,37.1107537,1215.7,1215.6,7.098]
[1672787234389,41.03242907,1215.7,1215.6,7.098]
[1672787234600,43.07442907,1215.7,1215.6,0.098]
[1672787234845,43.07442907,1215.7,1215.4,7.098]
[1672787235171,19.80688,1215.8,1215.7,1.55931498]
[1672787235306,19.80688,1215.8,1215.7,6.37788854]
[1672787235307,24.24088,1215.8,1215.7,6.37788854]
[1672787235522,14.37014,1215.8,1215.7,1.65731498]
[1672787235782,28.14850717,1215.8,1215.7,1.55931498]
[1672787236102,23.64850717,1215.8,1215.7,1.55931498]
[1672787236412,0.066,1215.9,1215.7,9.37788854]
[1672787236621,9.86952,1215.9,1215.8,11.81857356]
[1672787236831,9.86952,1215.9,1215.8,11.91657356]
[1672787236832,12.83051364,1215.9,1215.8,11.91657356]
[1672787237004,17.33051364,1215.9,1215.8,11.91657356]
[1672787237632,22.70003364,1215.9,1215.8,11.91657356]
[1672787237845,12.83051364,1215.9,1215.8,11.91657356]
[1672787238471,2.96099364,1215.9,1215.8,11.91657356]
[1672787238683,9.9372464,1216.0,1215.9,1.22540823]
[1672787238684,14.4372464,1216.0,1215.9,1.22540823]
[1672787238894,9.86898,1216.0,1215.9,6.04398179]
[1672787239146,9.86898,1216.0,1215.9,6.14198179]
[1672787239290,14.36898,1216.0,1215.9,6.14198179]
[1672787239508,17.847877,1216.0,1215.9,1.32340823]
[1672787239714,27.716887,1216.0,1215.9,6.04398179]
[1672787240093,27.716887,1216.0,1215.9,6.14198179]
[1672787240592,3.478897,1216.0,1215.9,6.14198179]
[1672787240803,14.36842,1216.0,1215.9,6.14198179]
[1672787241224,4.5,1216.0,1215.9,6.14198179]
[1672787241477,14.36842,1216.0,1215.9,6.14198179]
[1672787241634,0.6832,1216.1,1215.9,10.29084293]
[1672787241819,0.066,1216.2,1216.0,15.9674347]
[1672787242028,10.57283,1216.3,1216.1,4.81857356]
[1672787242381,24.32246,1216.3,1216.1,4.81857356]
[1672787242555,34.18844,1216.3,1216.1,4.81857356]
[1672787242870,4.92085201,1216.3,1216.1,4.81857356]
[1672787243080,5.21820011,1216.4,1216.1,8.9674347]
[1672787243240,15.01755011,1216.4,1216.2,4.81857356]
[1672787243823,24.88290011,1216.4,1216.2,4.81857356]
[1672787243970,0.6171,1216.3,1216.1,0.098]
[1672787244174,24.94890011,1216.4,1216.0,11.91657356]
[1672787244384,29.64425512,1216.4,1216.1,4.81857356]
[1672787248441,35.41411626,1216.4,1216.0,7.098]
[1672787248669,39.46716,1216.2,1216.0,11.91657356]
[1672787248793,24.2352,1216.1,1216.0,7.098]
[1672787249276,19.7352,1216.1,1216.0,7.098]
[1672787249865,14.040506,1216.2,1216.0,11.91657356]
[1672787250057,9.8676,1216.1,1216.0,11.91657356]
[1672787250296,19.7352,1216.1,1216.0,11.91657356]
[1672787251690,9.8676,1216.1,1216.0,11.91657356]
[1672787252050,19.7352,1216.1,1216.0,11.91657356]
[1672787252530,19.7352,1216.1,1216.0,7.098]
[1672787252721,32.569599,1216.1,1216.0,7.098]
[1672787255944,32.569599,1216.1,1216.0,0.098]
[1672787256159,32.569599,1216.1,1215.9,1.22540823]
[1672787256160,38.95666014,1216.1,1215.9,1.22540823]
[1672787256406,38.97066014,1216.1,1215.9,1.22540823]
[1672787256600,34.10526,1216.0,1215.9,1.22540823]
[1672787256811,39.45333201,1216.0,1215.9,1.22540823]
[1672787258153,39.45533201,1216.0,1215.9,1.22540823]
[1672787258377,39.45333201,1216.0,1215.9,1.22540823]
[1672787259586,34.95333201,1216.0,1215.9,1.22540823]
[1672787262991,34.95559841,1216.0,1215.9,1.17540823]
[1672787265823,5.34807201,1216.0,1215.9,1.17540823]
[1672787266034,0.014,1216.0,1215.9,1.17540823]
[1672787266299,19.7503,1216.1,1215.9,5.99398179]
[1672787266514,29.60526,1216.0,1215.9,6.08598179]
[1672787266726,29.61926,1216.0,1215.9,6.08598179]
[1672787267711,29.61926,1216.0,1215.9,1.26740823]
[1672787267921,29.61926,1216.0,1215.9,5.99398179]
[1672787268196,29.61926,1216.0,1215.9,1.26740823]
[1672787268362,29.61926,1216.0,1215.9,1.17540823]
[1672787268363,33.57319,1216.0,1215.9,1.17540823]
[1672787272343,0.0022664,1215.9,1215.6,3.0]
[1672787272568,0.0022664,1215.9,1215.5,7.091]
[1672787272569,2.2384,1215.8,1215.5,7.091]
[1672787272870,39.4834,1215.7,1215.5,7.091]
[1672787273075,39.4994,1215.7,1215.5,7.091]
[1672787273305,39.5016664,1215.7,1215.5,7.091]
[1672787273551,34.11498,1215.6,1215.5,7.091]
[1672787273705,34.13098,1215.6,1215.5,7.091]
[1672787273913,38.53638964,1215.6,1215.5,7.091]
[1672787276164,48.40804964,1215.6,1215.5,7.091]
[1672787277105,48.40804964,1215.6,1215.5,2.44869]
[1672787277279,51.48302281,1215.6,1215.3,7.88884836]
[1672787277698,51.48302281,1215.6,1215.3,3.091]
[1672787277966,51.48102281,1215.6,1215.3,7.82022624]
[1672787278281,51.48102281,1215.6,1215.3,7.91122624]
[1672787278282,48.40804964,1215.6,1215.3,7.91122624]
[1672787280763,0.016,1215.6,1215.4,15.96908738]
[1672787281081,19.74387,1215.6,1215.5,4.82022624]
[1672787281310,19.75987,1215.6,1215.5,4.82022624]
[1672787281561,32.600113,1215.6,1215.4,11.91122624]
[1672787282591,2.984113,1215.6,1215.4,11.91122624]
[1672787282816,9.9235264,1215.7,1215.4,11.91122624]
[1672787282817,19.8108564,1215.7,1215.4,11.91122624]
[1672787283130,19.7436,1215.6,1215.5,4.82022624]
[1672787283286,19.7596,1215.6,1215.4,11.91122624]
[1672787283509,29.6314,1215.6,1215.4,11.91122624]
[1672787284232,29.6314,1215.6,1215.4,11.90922624]
[1672787284490,33.58689264,1215.6,1215.4,11.91122624]
[1672787286057,46.53366581,1215.6,1215.4,11.91122624]
[1672787286608,43.45869264,1215.6,1215.4,11.91122624]
[1672787286978,43.45869264,1215.6,1215.4,7.091]
[1672787287184,46.53366581,1215.6,1215.4,7.091]
[1672787287399,46.53366581,1215.6,1215.4,11.91122624]
[1672787287845,43.45869264,1215.6,1215.4,11.91122624]
[1672787288255,46.53366581,1215.6,1215.4,11.91122624]
[1672787288464,46.53366581,1215.6,1215.4,0.091]
[1672787288701,46.53166581,1215.6,1215.2,11.91122624]
[1672787288943,51.29802695,1215.6,1215.2,0.091]
[1672787289113,10.41224078,1215.5,1215.0,16.2095]
[1672787289328,42.67241227,1215.4,1215.0,12.52902624]
[1672787289553,3.18064467,1215.3,1215.0,11.91122624]
[1672787289782,3.18064467,1215.3,1215.0,15.91122624]
[1672787289783,29.62473,1215.2,1215.0,15.91122624]
[1672787290102,3.17740869,1215.1,1215.0,11.91122624]
[1672787290316,3.23599712,1215.2,1215.0,14.91122624]
[1672787290590,0.066,1215.3,1215.1,9.04622276]
[1672787290689,0.066,1215.3,1215.2,4.82022624]
[1672787290690,9.87442,1215.3,1215.2,4.82022624]
[1672787290940,19.76288,1215.3,1215.2,4.82022624]
[1672787291321,19.76288,1215.3,1215.2,4.77022624]
[1672787291837,0.014,1215.3,1215.2,18.89880966]
[1672787292074,29.6328,1215.5,1215.2,20.61080966]
[1672787292255,19.75974,1215.5,1215.3,6.42622624]
[1672787292465,0.014,1215.5,1215.4,4.82022624]
[1672787292672,33.58773264,1215.6,1215.4,4.82022624]
[1672787292884,26.79055581,1215.6,1215.4,4.82022624]
[1672787293130,36.66272581,1215.6,1215.4,4.82022624]
[1672787294675,36.66272581,1215.6,1215.4,4.77022624]
[1672787296266,46.53489581,1215.6,1215.4,4.77022624]
[1672787297463,46.53489581,1215.6,1215.3,6.51722624]
[1672787297628,46.53489581,1215.6,1215.3,9.51722624]
[1672787297989,46.53489581,1215.6,1215.3,14.01722624]
[1672787298303,46.53489581,1215.6,1215.4,4.82022624]
[1672787298304,16.91812581,1215.6,1215.4,4.82022624]
[1672787298679,26.78978581,1215.6,1215.4,4.82022624]
[1672787298886,26.78978581,1215.6,1215.4,4.77022624]
[1672787299338,36.66144581,1215.6,1215.4,4.77022624]
[1672787300618,33.58647264,1215.6,1215.4,4.77022624]
[1672787300926,36.66144581,1215.6,1215.4,4.77022624]
[1672787301143,36.66144581,1215.6,1215.3,9.197]
[1672787301144,36.66144581,1215.6,1215.3,9.51722624]
[1672787301455,3.07497317,1215.5,1215.3,7.91122624]
[1672787301601,19.74658,1215.4,1215.3,7.91122624]
[1672787301812,29.63387,1215.4,1215.3,7.91122624]
[1672787302084,19.76058,1215.4,1215.3,12.36122624]
[1672787302393,19.76058,1215.4,1215.3,12.36322624]
[1672787302394,19.76258,1215.4,1215.3,12.36322624]
[1672787302609,9.88929,1215.4,1215.3,12.36322624]
[1672787303178,0.016,1215.4,1215.3,12.36322624]
[1672787303552,29.6375864,1215.5,1215.3,12.36322624]
[1672787303767,0.0182664,1215.5,1215.4,4.82022624]
[1672787303978,12.99669317,1215.6,1215.4,33.21108738]
[1672787303979,0.016,1215.6,1215.4,33.21108738]
[1672787304285,0.05,1215.7,1215.5,23.80554624]
[1672787304286,3.07497317,1215.7,1215.5,23.80554624]
[1672787304451,3.07497317,1215.7,1215.6,4.82022624]
[1672787304880,3.14097317,1215.8,1215.6,4.82022624]
[1672787305091,3.07497317,1215.8,1215.6,4.82022624]
[1672787305590,3.07497317,1215.8,1215.6,4.77022624]
[1672787305806,12.94504317,1215.8,1215.6,4.77022624]
[1672787306031,3.07497317,1215.7,1215.6,4.77022624]
[1672787306642,3.07497317,1215.7,1215.6,24.51354624]
[1672787306875,3.14097317,1215.8,1215.6,38.57706738]
[1672787307109,3.07497317,1215.8,1215.7,4.82022624]
[1672787308173,19.74008,1215.8,1215.7,4.82022624]
[1672787308497,22.83390872,1215.8,1215.7,4.82022624]
[1672787308661,19.75608,1215.8,1215.7,4.82022624]
[1672787309011,19.75608,1215.8,1215.7,4.77022624]
[1672787309382,9.88604,1215.8,1215.7,4.77022624]
[1672787309751,23.44604781,1215.8,1215.7,4.82022624]
[1672787309964,26.84455823,1215.8,1215.7,4.82022624]
[1672787310178,16.97451823,1215.8,1215.7,4.82022624]
[1672787310413,26.84455823,1215.8,1215.7,4.82022624]
[1672787310778,26.84455823,1215.8,1215.6,4.86322624]
[1672787310992,3.0780636,1215.7,1215.6,4.82022624]
[1672787311242,12.9489136,1215.7,1215.6,4.82022624]
[1672787311587,3.0940636,1215.7,1215.6,4.82022624]
[1672787311722,3.0780636,1215.7,1215.6,4.82022624]
[1672787312445,12.9489136,1215.7,1215.6,4.82022624]
[1672787312555,12.9649136,1215.7,1215.6,4.82022624]
[1672787312776,3.0940636,1215.7,1215.6,4.82022624]
[1672787312988,3.0780636,1215.7,1215.6,4.82022624]
[1672787313214,12.9489136,1215.7,1215.6,4.82022624]
[1672787313408,12.9649136,1215.7,1215.6,4.77022624]
[1672787313615,22.8357636,1215.7,1215.6,4.77022624]
[1672787314111,32.7066136,1215.7,1215.6,4.77022624]
[1672787314309,12.9649136,1215.7,1215.6,4.77022624]
[1672787315095,22.8357636,1215.7,1215.6,4.77022624]
[1672787316993,22.8357636,1215.7,1215.6,4.72022624]
[1672787317651,12.9649136,1215.7,1215.6,4.72022624]
[1672787318979,3.0940636,1215.7,1215.6,4.72022624]
[1672787319250,3.0780636,1215.7,1215.6,4.72022624]
[1672787319462,12.9489136,1215.7,1215.6,4.72022624]
[1672787319784,12.9649136,1215.7,1215.6,4.72022624]
[1672787320805,22.8357636,1215.7,1215.6,4.67022624]
[1672787320999,22.8357636,1215.7,1215.5,9.47622624]
[1672787321000,37.67809278,1215.7,1215.5,9.47622624]
[1672787321436,37.67809278,1215.7,1215.5,7.86322624]
[1672787323330,27.80808278,1215.7,1215.5,7.86322624]
[1672787323550,37.67954278,1215.7,1215.5,7.86322624]
[1672787324395,32.6580636,1215.7,1215.5,7.86322624]
[1672787325291,12.9151436,1215.7,1215.5,7.86322624]
[1672787326155,12.9151436,1215.7,1215.5,17.73569624]
[1672787326338,12.9151436,1215.7,1215.5,7.86322624]
[1672787326715,22.7862236,1215.7,1215.5,7.86322624]
[1672787326877,22.7862236,1215.7,1215.5,7.81322624]
[1672787327283,22.7862236,1215.7,1215.5,0.043]
[1672787327284,4.1062664,1215.6,1215.5,0.043]
[1672787327491,4.1062664,1215.6,1215.4,11.86322624]
[1672787327695,9.87248,1215.5,1215.4,11.86322624]
[1672787327958,9.87248,1215.5,1215.4,7.043]
[1672787327959,2.09,1215.5,1215.4,7.043]
[1672787328170,2.074,1215.5,1215.4,14.86322624]
[1672787328756,29.6847764,1215.6,1215.4,14.86322624]
[1672787328973,5.0854189,1215.6,1215.4,24.73651624]
[1672787329335,14.9571689,1215.6,1215.4,24.73651624]
[1672787329546,5.0854189,1215.6,1215.4,24.73651624]
[1672787330125,5.0854189,1215.6,1215.5,4.82022624]
[1672787330333,0.0182664,1215.6,1215.5,4.82022624]
[1672787330593,9.8739264,1215.6,1215.5,4.82022624]
[1672787330804,9.8899264,1215.6,1215.5,4.82022624]
[1672787331488,12.9703298,1215.6,1215.5,4.82022624]
[1672787334068,3.0986698,1215.6,1215.5,4.82022624]
[1672787334382,3.0804034,1215.6,1215.5,4.82022624]
[1672787334591,3.1464034,1215.7,1215.5,34.43766624]
[1672787334761,3.0804034,1215.7,1215.6,4.82022624]
[1672787335190,9.87085,1215.7,1215.5,4.86322624]
[1672787335544,3.08150151,1215.6,1215.5,4.82022624]
[1672787336222,3.08150151,1215.6,1215.5,5.04487158]
[1672787336434,3.08150151,1215.6,1215.5,5.08787158]
[1672787337879,3.03150151,1215.6,1215.5,5.08787158]
[1672787340364,12.90316151,1215.6,1215.5,0.26764534]
[1672787340599,37.19440574,1215.6,1215.5,0.22464534]
[1672787341947,47.07756173,1215.6,1215.5,0.22464534]
[1672787342155,33.50443793,1215.6,1215.5,0.22464534]
[1672787342339,37.20584139,1215.6,1215.5,0.22464534]
[1672787343349,17.46252139,1215.6,1215.5,0.22464534]
[1672787343509,7.59086139,1215.6,1215.5,0.22464534]
[1672787343705,27.33418139,1215.6,1215.5,0.22464534]
[1672787344504,37.20584139,1215.6,1215.5,0.22464534]
[1672787345290,7.59086139,1215.6,1215.5,0.22464534]
[1672787345495,7.59086139,1215.6,1215.5,5.04487158]
[1672787345710,3.10082627,1215.6,1215.5,5.08787158]
[1672787345937,3.08482627,1215.6,1215.5,5.08787158]
[1672787349300,3.08482627,1215.6,1215.5,24.83283158]
[1672787349494,3.08482627,1215.6,1215.5,17.96035158]
[1672787350170,3.08482627,1215.6,1215.5,8.08787158]
[1672787350382,3.08482627,1215.6,1215.5,17.96035158]
[1672787351011,3.15082627,1215.7,1215.5,39.32631158]
[1672787351163,3.15082627,1215.7,1215.6,4.82022624]
[1672787351164,3.08482627,1215.7,1215.6,4.82022624]
[1672787351549,3.08482627,1215.7,1215.6,14.69188624]
[1672787351692,3.08482627,1215.7,1215.6,4.86322624]
[1672787351900,3.08482627,1215.7,1215.6,4.82022624]
[1672787352380,3.08482627,1215.7,1215.6,14.69188624]
[1672787352602,3.08482627,1215.7,1215.6,14.73488624]
[1672787352739,3.08482627,1215.7,1215.6,4.86322624]
[1672787352953,3.08482627,1215.7,1215.6,4.82022624]
[1672787353647,13.63992986,1215.8,1215.6,14.69188624]
[1672787353855,13.63992986,1215.8,1215.6,14.73488624]
[1672787353856,3.08438972,1215.7,1215.6,14.73488624]
[1672787354220,3.08438972,1215.7,1215.6,34.47820624]
[1672787354759,3.08438972,1215.7,1215.6,24.60654624]
[1672787355194,3.08438972,1215.7,1215.6,34.47820624]
[1672787356163,3.08438972,1215.7,1215.6,24.60654624]
[1672787357683,3.08438972,1215.7,1215.6,26.22054624]
[1672787358902,3.08438972,1215.7,1215.6,16.34888624]
[1672787361257,3.08438972,1215.7,1215.6,16.34611625]
[1672787365678,3.15038972,1215.8,1215.6,16.34611625]
[1672787365924,3.08438972,1215.8,1215.7,4.82022624]
[1672787366134,6.20897662,1215.8,1215.7,4.82022624]
[1672787366352,6.22497662,1215.8,1215.7,4.82022624]
[1672787366951,6.22497662,1215.8,1215.6,16.34888624]
[1672787367166,6.22497662,1215.8,1215.7,4.82022624]
[1672787367619,6.22497662,1215.8,1215.6,16.34888624]
[1672787367947,3.08163459,1215.7,1215.6,6.47722624]
[1672787368355,3.08163459,1215.7,1215.6,16.34888624]
[1672787368734,3.08163459,1215.7,1215.6,6.47722624]
[1672787368944,3.08163459,1215.7,1215.6,16.34888624]
[1672787369377,3.08163459,1215.7,1215.6,26.22054624]
[1672787370836,3.08163459,1215.7,1215.6,16.34888624]
[1672787371399,3.08163459,1215.7,1215.6,14.73488624]
[1672787377703,3.08163459,1215.7,1215.6,24.60654624]
[1672787378371,6.27222149,1215.8,1215.6,24.60654624]
[1672787378588,6.22222149,1215.8,1215.7,4.82022624]
[1672787378983,3.09763459,1215.8,1215.7,10.59108738]
[1672787379238,3.14763459,1215.9,1215.7,61.8426591]
[1672787379403,3.73368676,1216.0,1215.7,61.8426591]
[1672787379404,3.17991789,1216.0,1215.8,31.55040534]
[1672787379613,3.11391789,1216.0,1215.9,4.82022624]
[1672787379832,3.11391789,1216.0,1215.9,14.68945624]
[1672787380044,3.11391789,1216.0,1215.9,4.86322624]
[1672787380273,3.11391789,1216.0,1215.9,4.82022624]
[1672787380483,3.11391789,1216.0,1215.9,14.68945624]
[1672787380696,3.11391789,1216.0,1215.9,40.24177738]
[1672787381018,0.0322833,1216.0,1215.9,44.47416005]
[1672787381390,0.0322833,1216.0,1215.9,45.19933177]
[1672787381756,0.0322833,1216.0,1215.9,13.63408738]
[1672787381928,3.11391789,1216.0,1215.9,13.63408738]
[1672787382118,3.11391789,1216.0,1215.9,23.50331738]
[1672787382981,0.0322833,1216.0,1215.9,23.50331738]
[1672787383375,0.0322833,1216.0,1215.9,33.37254738]
[1672787383904,0.0322833,1216.0,1215.9,23.50331738]
[1672787384364,3.11391789,1216.0,1215.9,23.50331738]
[1672787384743,3.11391789,1216.0,1215.9,33.37254738]
[1672787385426,3.11391789,1216.0,1215.9,23.50331738]
[1672787386059,3.11391789,1216.0,1215.9,13.63408738]
[1672787386708,3.11391789,1216.0,1215.9,23.50331738]
[1672787387772,0.0322833,1216.0,1215.9,33.37254738]
[1672787388014,0.0322833,1216.0,1215.9,9.48522624]
[1672787388357,0.0322833,1216.0,1215.9,19.35445624]
[1672787388725,0.0322833,1216.0,1215.9,39.09291624]
[1672787389456,0.0322833,1216.0,1215.9,39.58808796]
[1672787389784,0.0322833,1216.0,1215.9,33.8677191]
[1672787392612,0.0322833,1216.0,1215.9,43.7369491]
[1672787393729,0.0322833,1216.0,1215.9,33.8677191]
[1672787394941,0.0322833,1216.0,1215.9,23.9984891]
[1672787395684,0.0322833,1216.0,1215.9,33.8677191]
[1672787396986,0.0322833,1216.0,1215.9,23.9984891]
[1672787397529,0.0322833,1216.0,1215.9,12.5072591]
[1672787398131,9.9007033,1216.0,1215.9,8.35839796]
[1672787398340,3.12991789,1216.0,1215.9,7.86322624]
[1672787398567,3.11391789,1216.0,1215.9,7.86322624]
[1672787398940,3.11391789,1216.0,1215.9,17.73245624]
[1672787399308,3.11391789,1216.0,1215.9,7.86322624]
[1672787399479,6.45443052,1216.0,1215.9,0.04021305]
[1672787399690,31.76894874,1216.0,1215.8,6.0454642]
[1672787399899,3.07712528,1215.9,1215.8,1.26545101]
[1672787400114,6.56173268,1215.9,1215.8,1.22523796]
[1672787400318,6.57773268,1215.9,1215.8,1.22523796]
[1672787400549,6.57773268,1215.9,1215.8,20.96531796]
[1672787400762,0.016,1215.9,1215.8,29.97461839]
[1672787400982,3.15940858,1216.0,1215.8,41.46665839]
[1672787400983,3.10940858,1216.0,1215.8,41.46665839]
[1672787401198,3.10940858,1216.0,1215.9,4.82022624]
[1672787404323,0.0322833,1216.0,1215.9,8.96908738]
[1672787404574,0.0322833,1216.0,1215.9,28.74776043]
[1672787406005,0.0322833,1216.0,1215.9,18.87853043]
[1672787406006,3.10940858,1216.0,1215.9,18.87853043]
[1672787406327,3.10940858,1216.0,1215.9,9.00930043]
[1672787408699,3.10940858,1216.0,1215.9,4.86043929]
[1672787408846,3.10940858,1216.0,1215.9,4.82022624]
[1672787409265,3.10940858,1216.0,1215.9,14.68945624]
[1672787409471,3.10940858,1216.0,1215.9,14.72966929]
[1672787410576,3.10940858,1216.0,1215.9,4.86043929]
[1672787410788,3.10940858,1216.0,1215.9,14.68945624]
[1672787410981,3.10940858,1216.0,1215.9,4.86043929]
[1672787411197,3.10940858,1216.0,1215.9,4.82022624]
[1672787413043,3.10940858,1216.0,1215.9,14.68945624]
[1672787413251,3.10940858,1216.0,1215.9,14.72966929]
[1672787413540,3.10940858,1216.0,1215.9,4.86043929]
[1672787413683,3.10940858,1216.0,1215.9,14.68945624]
[1672787413890,3.10940858,1216.0,1215.9,0.04021305]
[1672787414122,35.00687674,1216.0,1215.8,6.0454642]
[1672787414363,12.95000162,1215.9,1215.8,5.41431215]
[1672787414575,12.96600162,1215.9,1215.8,13.23453839]
[1672787414890,3.09677162,1215.9,1215.8,13.23453839]